[Event "Titled Tuesday Blitz June 20 Late 2023"]
[White "ArchibaldCerveza29"]
[Black "Vaglio Munoz, Jaime"]
[BlackFideId "6500145"]
[WhiteElo "2444"]
[BlackElo "2199"]
[Result "0-1"]
[Round "6"]
[TimeControl "180+2"]
[Date "2023.06.20"]
[WhiteClock "0:00:00"]
[BlackClock "0:00:30"]
[Board "130"]

1. e4 {[%clk 0:03:00]}  c5 {[%clk 0:02:58]} 2. c3 {[%clk 0:02:55]}  Qa5 {[%clk 0:02:57]} 3. Nf3 {[%clk 0:02:46]}  a6 {[%clk 0:02:55]} 4. Be2 {[%clk 0:02:29]}  Nf6 {[%clk 0:02:53]} 5. e5 {[%clk 0:02:28]}  Nd5 {[%clk 0:02:52]} 6. O-O {[%clk 0:02:29]}  e6 {[%clk 0:02:52]} 7. d4 {[%clk 0:02:29]}  cxd4 {[%clk 0:02:48]} 8. cxd4 {[%clk 0:02:30]}  Nc6 {[%clk 0:02:47]} 9. a3 {[%clk 0:02:19]}  h6 {[%clk 0:02:44]} 10. Nbd2 {[%clk 0:02:19]}  b5 {[%clk 0:02:37]} 11. Re1 {[%clk 0:02:09]}  Be7 {[%clk 0:02:36]} 12. Ne4 {[%clk 0:02:08]}  Bb7 {[%clk 0:02:36]} 13. Bd2 {[%clk 0:02:07]}  Qb6 {[%clk 0:02:33]} 14. Rc1 {[%clk 0:02:05]}  Nxd4 {[%clk 0:02:24]} 15. Bf1 {[%clk 0:01:41]}  Nc6 {[%clk 0:02:08]} 16. h4 {[%clk 0:01:28]}  b4 {[%clk 0:01:47]} 17. Nd6+ {[%clk 0:01:13]}  Bxd6 {[%clk 0:01:45]} 18. exd6 {[%clk 0:01:14]}  O-O {[%clk 0:01:30]} 19. Rc4 {[%clk 0:00:57]}  a5 {[%clk 0:01:29]} 20. Bxh6 {[%clk 0:00:14]}  f6 {[%clk 0:00:51]} 21. Rg4 {[%clk 0:00:09]}  Rf7 {[%clk 0:00:52]} 22. Bc1 {[%clk 0:00:07]}  Ne5 {[%clk 0:00:47]} 23. Nxe5 {[%clk 0:00:07]}  fxe5 {[%clk 0:00:47]} 24. Qe2 {[%clk 0:00:04]}  Qxd6 {[%clk 0:00:46]} 25. Qxe5 {[%clk 0:00:04]}  Qxe5 {[%clk 0:00:45]} 26. Rxe5 {[%clk 0:00:05]}  Rc8 {[%clk 0:00:44]} 27. Bd2 {[%clk 0:00:04]}  Rc2 {[%clk 0:00:43]} 28. Rd4 {[%clk 0:00:03]}  Rxb2 {[%clk 0:00:42]} 29. axb4 {[%clk 0:00:04]}  axb4 {[%clk 0:00:41]} 30. h5 {[%clk 0:00:04]}  Rb1 {[%clk 0:00:41]} 31. Re1 {[%clk 0:00:03]}  Rb2 {[%clk 0:00:38]} 32. Bc1 {[%clk 0:00:02]}  Rc2 {[%clk 0:00:37]} 33. Bd3 {[%clk 0:00:02]}  Rc3 {[%clk 0:00:37]} 34. Bd2 {[%clk 0:00:02]}  Rc7 {[%clk 0:00:35]} 35. Bxb4 {[%clk 0:00:02]}  Nf4 {[%clk 0:00:34]} 36. Bf1 {[%clk 0:00:02]}  Rc2 {[%clk 0:00:32]} 37. Bd6 {[%clk 0:00:00]}  Nxh5 {[%clk 0:00:30]} 0-1


[Site "https://www.chess.com"]

[Event "Titled Tuesday Blitz June 20 Late 2023"]
[White "Itkis, Boris"]
[Black "Calhoun, Luke"]
[WhiteFideId "1209167"]
[BlackFideId "2064421"]
[WhiteElo "2219"]
[BlackElo "2255"]
[Result "1-0"]
[Round "6"]
[TimeControl "180+2"]
[Date "2023.06.20"]
[WhiteClock "0:01:36"]
[BlackClock "0:00:41"]
[Board "132"]

1. c4 {[%clk 0:03:00]}  e6 {[%clk 0:02:55]} 2. Nf3 {[%clk 0:03:01]}  d5 {[%clk 0:02:55]} 3. e3 {[%clk 0:03:02]}  Nf6 {[%clk 0:02:55]} 4. b3 {[%clk 0:03:03]}  Be7 {[%clk 0:02:54]} 5. Bb2 {[%clk 0:03:03]}  O-O {[%clk 0:02:55]} 6. g3 {[%clk 0:03:04]}  c5 {[%clk 0:02:54]} 7. Bg2 {[%clk 0:03:05]}  b6 {[%clk 0:02:53]} 8. O-O {[%clk 0:03:05]}  Bb7 {[%clk 0:02:53]} 9. Nc3 {[%clk 0:03:06]}  dxc4 {[%clk 0:02:53]} 10. bxc4 {[%clk 0:03:06]}  Nc6 {[%clk 0:02:50]} 11. Qe2 {[%clk 0:03:07]}  e5 {[%clk 0:02:32]} 12. Nxe5 {[%clk 0:03:00]}  Nxe5 {[%clk 0:02:27]} 13. Bxb7 {[%clk 0:03:00]}  Rb8 {[%clk 0:02:28]} 14. Bg2 {[%clk 0:03:00]}  Nd3 {[%clk 0:02:16]} 15. Rab1 {[%clk 0:03:01]}  Nxb2 {[%clk 0:02:16]} 16. Rxb2 {[%clk 0:03:01]}  Qd7 {[%clk 0:02:12]} 17. Nd5 {[%clk 0:03:02]}  Nxd5 {[%clk 0:02:11]} 18. Bxd5 {[%clk 0:03:03]}  Bf6 {[%clk 0:02:11]} 19. Rbb1 {[%clk 0:03:03]}  Rfe8 {[%clk 0:02:10]} 20. f4 {[%clk 0:03:02]}  Rbd8 {[%clk 0:02:06]} 21. g4 {[%clk 0:03:01]}  g6 {[%clk 0:02:05]} 22. g5 {[%clk 0:02:39]}  Bg7 {[%clk 0:02:05]} 23. h4 {[%clk 0:02:39]}  Qa4 {[%clk 0:02:04]} 24. f5 {[%clk 0:02:05]}  Rd7 {[%clk 0:01:43]} 25. Rf3 {[%clk 0:02:00]}  Qxa2 {[%clk 0:01:41]} 26. Rbf1 {[%clk 0:01:59]}  gxf5 {[%clk 0:01:22]} 27. Rxf5 {[%clk 0:01:58]}  Ree7 {[%clk 0:01:21]} 28. Qf2 {[%clk 0:01:47]}  Qc2 {[%clk 0:00:59]} 29. Bxf7+ {[%clk 0:01:45]}  Kh8 {[%clk 0:00:59]} 30. Bd5 {[%clk 0:01:40]}  Rd8 {[%clk 0:00:56]} 31. h5 {[%clk 0:01:39]}  Bb2 {[%clk 0:00:43]} 32. Rf8+ {[%clk 0:01:36]}  Kg7 {[%clk 0:00:41]} 33. Qf7+ {[%clk 0:01:35]}  Rxf7 {[%clk 0:00:41]} 34. R1xf7# {[%clk 0:01:36]} 1-0


[Site "https://www.chess.com"]

[Event "Titled Tuesday Blitz June 20 Late 2023"]
[White "zano2023"]
[Black "Seletsky, Grigory"]
[BlackFideId "14112191"]
[WhiteElo "2194"]
[BlackElo "2491"]
[Result "0-1"]
[Round "6"]
[TimeControl "180+2"]
[Date "2023.06.20"]
[WhiteClock "0:00:22"]
[BlackClock "0:00:44"]
[Board "133"]

1. d4 {[%clk 0:03:00]}  d6 {[%clk 0:02:58]} 2. Nf3 {[%clk 0:02:59]}  Nd7 {[%clk 0:02:56]} 3. Nbd2 {[%clk 0:02:59]}  e5 {[%clk 0:02:55]} 4. c3 {[%clk 0:02:54]}  g6 {[%clk 0:02:54]} 5. e4 {[%clk 0:02:54]}  Bg7 {[%clk 0:02:54]} 6. Bd3 {[%clk 0:02:53]}  Ne7 {[%clk 0:02:53]} 7. O-O {[%clk 0:02:51]}  O-O {[%clk 0:02:54]} 8. Re1 {[%clk 0:02:50]}  h6 {[%clk 0:02:54]} 9. Nf1 {[%clk 0:02:50]}  f5 {[%clk 0:02:53]} 10. exf5 {[%clk 0:02:39]}  gxf5 {[%clk 0:02:53]} 11. dxe5 {[%clk 0:02:33]}  dxe5 {[%clk 0:02:52]} 12. Bc4+ {[%clk 0:02:32]}  Kh7 {[%clk 0:02:51]} 13. Ng3 {[%clk 0:02:25]}  e4 {[%clk 0:02:49]} 14. Nd4 {[%clk 0:02:22]}  Ne5 {[%clk 0:02:49]} 15. Be6 {[%clk 0:02:10]}  c5 {[%clk 0:02:44]} 16. Bxc8 {[%clk 0:02:06]}  Qxc8 {[%clk 0:02:34]} 17. Nb5 {[%clk 0:01:57]}  Rd8 {[%clk 0:02:32]} 18. Qh5 {[%clk 0:01:55]}  Nd3 {[%clk 0:02:31]} 19. Rd1 {[%clk 0:01:46]}  Qc6 {[%clk 0:02:22]} 20. Na3 {[%clk 0:01:44]}  Qg6 {[%clk 0:01:58]} 21. Qh3 {[%clk 0:01:28]}  a6 {[%clk 0:01:50]} 22. Nh5 {[%clk 0:01:27]}  Be5 {[%clk 0:01:46]} 23. Nc4 {[%clk 0:01:23]}  Bc7 {[%clk 0:01:44]} 24. b3 {[%clk 0:01:16]}  b5 {[%clk 0:01:43]} 25. Ne3 {[%clk 0:01:14]}  f4 {[%clk 0:01:23]} 26. Ng4 {[%clk 0:01:13]}  Ng8 {[%clk 0:01:13]} 27. Qh4 {[%clk 0:01:07]}  Rd6 {[%clk 0:01:06]} 28. Ba3 {[%clk 0:00:59]}  Rad8 {[%clk 0:01:04]} 29. Rf1 {[%clk 0:00:57]}  R8d7 {[%clk 0:00:57]} 30. c4 {[%clk 0:00:52]}  b4 {[%clk 0:00:56]} 31. Bc1 {[%clk 0:00:51]}  Qg5 {[%clk 0:00:54]} 32. Qh3 {[%clk 0:00:48]}  Rf7 {[%clk 0:00:52]} 33. g3 {[%clk 0:00:47]}  Rg6 {[%clk 0:00:49]} 34. f3 {[%clk 0:00:34]}  exf3 {[%clk 0:00:49]} 35. Rxf3 {[%clk 0:00:33]}  Nxc1 {[%clk 0:00:47]} 36. Rxc1 {[%clk 0:00:22]}  Qxg4 {[%clk 0:00:44]} 0-1


[Site "https://www.chess.com"]

[Event "Titled Tuesday Blitz June 20 Late 2023"]
[White "Szczepanek, Radoslaw"]
[Black "Francisco_Ferrari"]
[WhiteFideId "1120395"]
[WhiteElo "2161"]
[BlackElo "2246"]
[Result "0-1"]
[Round "6"]
[TimeControl "180+2"]
[Date "2023.06.20"]
[WhiteClock "0:00:18"]
[BlackClock "0:00:13"]
[Board "137"]

1. e4 {[%clk 0:03:00]}  c6 {[%clk 0:02:58]} 2. d4 {[%clk 0:03:00]}  d5 {[%clk 0:02:58]} 3. f3 {[%clk 0:03:01]}  dxe4 {[%clk 0:02:44]} 4. fxe4 {[%clk 0:03:02]}  e5 {[%clk 0:02:43]} 5. Nf3 {[%clk 0:03:02]}  Nd7 {[%clk 0:02:32]} 6. Bc4 {[%clk 0:03:02]}  exd4 {[%clk 0:02:25]} 7. O-O {[%clk 0:03:01]}  Ngf6 {[%clk 0:02:13]} 8. Ng5 {[%clk 0:02:41]}  Ne5 {[%clk 0:02:11]} 9. Nxf7 {[%clk 0:02:41]}  Nxf7 {[%clk 0:02:08]} 10. Bxf7+ {[%clk 0:02:41]}  Kxf7 {[%clk 0:02:08]} 11. e5 {[%clk 0:02:41]}  Be7 {[%clk 0:02:05]} 12. Qh5+ {[%clk 0:02:22]}  g6 {[%clk 0:01:50]} 13. Qh6 {[%clk 0:02:21]}  Bf5 {[%clk 0:01:36]} 14. exf6 {[%clk 0:02:17]}  Bxf6 {[%clk 0:01:35]} 15. g4 {[%clk 0:02:11]}  Bxg4 {[%clk 0:01:27]} 16. Bg5 {[%clk 0:01:56]}  Bf5 {[%clk 0:01:26]} 17. Bxf6 {[%clk 0:01:53]}  Qxf6 {[%clk 0:01:24]} 18. Nd2 {[%clk 0:01:53]}  Rhe8 {[%clk 0:01:08]} 19. Qxh7+ {[%clk 0:01:51]}  Qg7 {[%clk 0:01:03]} 20. Qh4 {[%clk 0:01:44]}  Kg8 {[%clk 0:00:55]} 21. Rae1 {[%clk 0:01:38]}  Bxc2 {[%clk 0:00:49]} 22. Nf3 {[%clk 0:01:37]}  d3 {[%clk 0:00:42]} 23. Ng5 {[%clk 0:01:24]}  d2 {[%clk 0:00:34]} 24. Qc4+ {[%clk 0:01:20]}  Kh8 {[%clk 0:00:26]} 25. Rxe8+ {[%clk 0:01:05]}  Rxe8 {[%clk 0:00:25]} 26. Qxc2 {[%clk 0:01:01]}  Qd4+ {[%clk 0:00:24]} 27. Kh1 {[%clk 0:00:55]}  Re1 {[%clk 0:00:19]} 28. Nf7+ {[%clk 0:00:38]}  Kg7 {[%clk 0:00:17]} 29. Kg2 {[%clk 0:00:31]}  Qg4+ {[%clk 0:00:17]} 30. Kf2 {[%clk 0:00:31]}  Qe2+ {[%clk 0:00:16]} 31. Kg3 {[%clk 0:00:31]}  Rxf1 {[%clk 0:00:15]} 32. Ne5 {[%clk 0:00:29]}  Qxe5+ {[%clk 0:00:14]} 33. Kg2 {[%clk 0:00:29]}  Qe2+ {[%clk 0:00:14]} 34. Kg3 {[%clk 0:00:29]}  Rf3+ {[%clk 0:00:14]} 35. Kg4 {[%clk 0:00:18]}  Rc3+ {[%clk 0:00:13]} 0-1


[Site "https://www.chess.com"]

[Event "Titled Tuesday Blitz June 20 Late 2023"]
[White "Palacio,Igor Da Paz"]
[Black "Kielinkei"]
[WhiteFideId "2121140"]
[WhiteElo "2126"]
[BlackElo "2439"]
[Result "0-1"]
[Round "6"]
[TimeControl "180+2"]
[Date "2023.06.20"]
[WhiteClock "0:00:01"]
[BlackClock "0:00:14"]
[Board "138"]

1. e4 {[%clk 0:03:00]}  c5 {[%clk 0:02:59]} 2. Nc3 {[%clk 0:03:00]}  a6 {[%clk 0:02:58]} 3. g3 {[%clk 0:03:01]}  b5 {[%clk 0:02:57]} 4. Bg2 {[%clk 0:03:01]}  Bb7 {[%clk 0:02:58]} 5. d3 {[%clk 0:03:00]}  e6 {[%clk 0:02:58]} 6. Nf3 {[%clk 0:02:59]}  Nf6 {[%clk 0:02:57]} 7. O-O {[%clk 0:02:59]}  d5 {[%clk 0:02:58]} 8. exd5 {[%clk 0:02:50]}  Nxd5 {[%clk 0:02:57]} 9. Bd2 {[%clk 0:02:50]}  Be7 {[%clk 0:02:53]} 10. Re1 {[%clk 0:02:48]}  O-O {[%clk 0:02:53]} 11. Ne4 {[%clk 0:02:29]}  Nd7 {[%clk 0:02:50]} 12. a3 {[%clk 0:02:27]}  N7f6 {[%clk 0:02:50]} 13. Nfg5 {[%clk 0:02:23]}  h6 {[%clk 0:02:41]} 14. Nf3 {[%clk 0:02:21]}  Qb6 {[%clk 0:02:23]} 15. Ne5 {[%clk 0:02:17]}  Rad8 {[%clk 0:02:21]} 16. Qe2 {[%clk 0:02:12]}  Ba8 {[%clk 0:02:07]} 17. Rad1 {[%clk 0:02:03]}  Qc7 {[%clk 0:01:48]} 18. Nf3 {[%clk 0:01:41]}  Bb7 {[%clk 0:01:36]} 19. Bc1 {[%clk 0:01:37]}  Qb6 {[%clk 0:01:29]} 20. h3 {[%clk 0:01:35]}  a5 {[%clk 0:01:27]} 21. Kh2 {[%clk 0:01:33]}  a4 {[%clk 0:01:25]} 22. Nfd2 {[%clk 0:01:31]}  Nxe4 {[%clk 0:01:22]} 23. Nxe4 {[%clk 0:01:30]}  Nf6 {[%clk 0:01:22]} 24. Nxf6+ {[%clk 0:01:23]}  Bxf6 {[%clk 0:01:22]} 25. Bxb7 {[%clk 0:01:23]}  Qxb7 {[%clk 0:01:23]} 26. Qe4 {[%clk 0:01:19]}  Qxe4 {[%clk 0:01:18]} 27. dxe4 {[%clk 0:01:19]}  Bd4 {[%clk 0:00:55]} 28. Kg2 {[%clk 0:01:18]}  b4 {[%clk 0:00:43]} 29. f4 {[%clk 0:00:36]}  bxa3 {[%clk 0:00:41]} 30. bxa3 {[%clk 0:00:35]}  Bc3 {[%clk 0:00:39]} 31. Rf1 {[%clk 0:00:34]}  c4 {[%clk 0:00:35]} 32. Kf3 {[%clk 0:00:30]}  Rb8 {[%clk 0:00:35]} 33. Ke2 {[%clk 0:00:12]}  Rb1 {[%clk 0:00:33]} 34. Rd7 {[%clk 0:00:12]}  Ra1 {[%clk 0:00:28]} 35. Rc7 {[%clk 0:00:13]}  Ra2 {[%clk 0:00:16]} 36. Rxc4 {[%clk 0:00:12]}  Bb2 {[%clk 0:00:11]} 37. Bxb2 {[%clk 0:00:11]}  Rxb2 {[%clk 0:00:11]} 38. Kd3 {[%clk 0:00:11]}  Rd8+ {[%clk 0:00:09]} 39. Kc3 {[%clk 0:00:12]}  Ra2 {[%clk 0:00:10]} 40. Rxa4 {[%clk 0:00:10]}  Rc8+ {[%clk 0:00:10]} 41. Kb3 {[%clk 0:00:05]}  Rcxc2 {[%clk 0:00:09]} 42. Rb4 {[%clk 0:00:03]}  Rcb2+ {[%clk 0:00:05]} 43. Ka4 {[%clk 0:00:03]}  Re2 {[%clk 0:00:04]} 44. Rf3 {[%clk 0:00:02]}  Rh2 {[%clk 0:00:02]} 45. h4 {[%clk 0:00:03]}  Rhc2 {[%clk 0:00:03]} 46. e5 {[%clk 0:00:03]}  Rc8 {[%clk 0:00:03]} 47. Rfb3 {[%clk 0:00:04]}  Kh7 {[%clk 0:00:03]} 48. Kb5 {[%clk 0:00:05]}  Rb8+ {[%clk 0:00:03]} 49. Ka4 {[%clk 0:00:05]}  Ra8+ {[%clk 0:00:03]} 50. Kb5 {[%clk 0:00:06]}  R2xa3 {[%clk 0:00:03]} 51. Rxa3 {[%clk 0:00:06]}  Rxa3 {[%clk 0:00:04]} 52. g4 {[%clk 0:00:04]}  Rg3 {[%clk 0:00:05]} 53. g5 {[%clk 0:00:04]}  Rg4 {[%clk 0:00:06]} 54. gxh6 {[%clk 0:00:03]}  Kxh6 {[%clk 0:00:07]} 55. f5 {[%clk 0:00:03]}  Rxb4+ {[%clk 0:00:06]} 56. Kxb4 {[%clk 0:00:04]}  exf5 {[%clk 0:00:07]} 57. Kc5 {[%clk 0:00:04]}  Kh5 {[%clk 0:00:04]} 58. Kd6 {[%clk 0:00:04]}  f4 {[%clk 0:00:04]} 59. Ke7 {[%clk 0:00:05]}  Kg6 {[%clk 0:00:05]} 60. h5+ {[%clk 0:00:03]}  Kxh5 {[%clk 0:00:04]} 61. Kxf7 {[%clk 0:00:04]}  f3 {[%clk 0:00:05]} 62. e6 {[%clk 0:00:05]}  f2 {[%clk 0:00:06]} 63. e7 {[%clk 0:00:06]}  f1=Q+ {[%clk 0:00:07]} 64. Kxg7 {[%clk 0:00:06]}  Qg2+ {[%clk 0:00:07]} 65. Kf8 {[%clk 0:00:06]}  Qf3+ {[%clk 0:00:07]} 66. Kg7 {[%clk 0:00:04]}  Qg4+ {[%clk 0:00:07]} 67. Kf8 {[%clk 0:00:03]}  Qf5+ {[%clk 0:00:08]} 68. Kg7 {[%clk 0:00:03]}  Qe6 {[%clk 0:00:09]} 69. Kf8 {[%clk 0:00:02]}  Qf6+ {[%clk 0:00:09]} 70. Ke8 {[%clk 0:00:03]}  Kg6 {[%clk 0:00:10]} 71. Kd7 {[%clk 0:00:03]}  Qf7 {[%clk 0:00:10]} 72. Kd8 {[%clk 0:00:02]}  Qd5+ {[%clk 0:00:11]} 73. Kc7 {[%clk 0:00:03]}  Qe6 {[%clk 0:00:11]} 74. Kd8 {[%clk 0:00:02]}  Qd6+ {[%clk 0:00:12]} 75. Ke8 {[%clk 0:00:01]}  Kf6 {[%clk 0:00:12]} 76. Kf8 {[%clk 0:00:01]}  Qxe7+ {[%clk 0:00:13]} 77. Kg8 {[%clk 0:00:01]}  Qg7# {[%clk 0:00:14]} 0-1


[Site "https://www.chess.com"]

[Event "Titled Tuesday Blitz June 20 Late 2023"]
[White "Pein, Jonathan"]
[Black "Barrionuevo, Pablo"]
[WhiteFideId "417092"]
[BlackFideId "110566"]
[WhiteElo "2151"]
[BlackElo "2212"]
[Result "0-1"]
[Round "6"]
[TimeControl "180+2"]
[Date "2023.06.20"]
[WhiteClock "0:00:00"]
[BlackClock "0:01:07"]
[Board "139"]

1. e4 {[%clk 0:02:59]}  d6 {[%clk 0:03:00]} 2. b3 {[%clk 0:02:58]}  Nf6 {[%clk 0:02:59]} 3. Qe2 {[%clk 0:02:57]}  g6 {[%clk 0:02:59]} 4. Bb2 {[%clk 0:02:57]}  Bg7 {[%clk 0:02:59]} 5. d4 {[%clk 0:02:56]}  O-O {[%clk 0:03:00]} 6. Nd2 {[%clk 0:02:57]}  Nc6 {[%clk 0:02:59]} 7. O-O-O {[%clk 0:02:55]}  a5 {[%clk 0:02:59]} 8. a4 {[%clk 0:02:53]}  e5 {[%clk 0:02:55]} 9. dxe5 {[%clk 0:02:50]}  dxe5 {[%clk 0:02:54]} 10. Nc4 {[%clk 0:02:49]}  Nd4 {[%clk 0:02:50]} 11. Qe1 {[%clk 0:02:37]}  Qe7 {[%clk 0:02:47]} 12. Ba3 {[%clk 0:02:29]}  c5 {[%clk 0:02:47]} 13. Nb6 {[%clk 0:02:12]}  Rb8 {[%clk 0:02:45]} 14. Nf3 {[%clk 0:02:12]}  Bg4 {[%clk 0:02:43]} 15. Be2 {[%clk 0:02:10]}  Bxf3 {[%clk 0:02:36]} 16. Bxf3 {[%clk 0:02:10]}  Qc7 {[%clk 0:02:32]} 17. Qxa5 {[%clk 0:01:36]}  Nd7 {[%clk 0:02:31]} 18. Nc4 {[%clk 0:01:36]}  b6 {[%clk 0:02:17]} 19. Qd2 {[%clk 0:01:32]}  b5 {[%clk 0:02:10]} 20. Qa5 {[%clk 0:01:21]}  Qc6 {[%clk 0:02:07]} 21. Ne3 {[%clk 0:01:15]}  bxa4 {[%clk 0:02:02]} 22. Qxa4 {[%clk 0:01:03]}  Qb7 {[%clk 0:01:54]} 23. Qc4 {[%clk 0:00:48]}  Nb6 {[%clk 0:01:48]} 24. Qd3 {[%clk 0:00:40]}  Rfd8 {[%clk 0:01:43]} 25. Nd5 {[%clk 0:00:40]}  c4 {[%clk 0:01:37]} 26. bxc4 {[%clk 0:00:38]}  Nxd5 {[%clk 0:01:31]} 27. exd5 {[%clk 0:00:12]}  Bh6+ {[%clk 0:01:31]} 28. Qe3 {[%clk 0:00:12]}  Bxe3+ {[%clk 0:01:28]} 29. fxe3 {[%clk 0:00:13]}  Nxf3 {[%clk 0:01:26]} 30. gxf3 {[%clk 0:00:14]}  Qb1+ {[%clk 0:01:25]} 31. Kd2 {[%clk 0:00:14]}  Qa2 {[%clk 0:01:26]} 32. Be7 {[%clk 0:00:13]}  Rd7 {[%clk 0:01:25]} 33. Bf6 {[%clk 0:00:11]}  Qxc4 {[%clk 0:01:25]} 34. e4 {[%clk 0:00:11]}  Rb2 {[%clk 0:01:22]} 35. Rc1 {[%clk 0:00:11]}  Qd4+ {[%clk 0:01:18]} 36. Ke2 {[%clk 0:00:11]}  Qc3 {[%clk 0:01:17]} 37. Rhd1 {[%clk 0:00:10]}  Rxc2+ {[%clk 0:01:16]} 38. Rxc2 {[%clk 0:00:09]}  Qxc2+ {[%clk 0:01:17]} 39. Rd2 {[%clk 0:00:10]}  Qc4+ {[%clk 0:01:17]} 40. Ke3 {[%clk 0:00:11]}  Qc5+ {[%clk 0:01:17]} 41. Ke2 {[%clk 0:00:11]}  Qd6 {[%clk 0:01:18]} 42. Bg5 {[%clk 0:00:09]}  f6 {[%clk 0:01:17]} 43. Bh6 {[%clk 0:00:10]}  Kf7 {[%clk 0:01:16]} 44. h4 {[%clk 0:00:10]}  Qa6+ {[%clk 0:01:17]} 45. Kf2 {[%clk 0:00:10]}  Qa5 {[%clk 0:01:15]} 46. Kg3 {[%clk 0:00:09]}  Qa1 {[%clk 0:01:09]} 47. Be3 {[%clk 0:00:08]}  Qe1+ {[%clk 0:01:07]} 48. Bf2 {[%clk 0:00:02]}  Qxd2 {[%clk 0:01:07]} 49. h5 {[%clk 0:00:00]}  Qf4+ {[%clk 0:01:07]} 0-1


[Site "https://www.chess.com"]

[Event "Titled Tuesday Blitz June 20 Late 2023"]
[White "FuenfgegenWilly"]
[Black "Kopacz, Grzegorz"]
[BlackFideId "1109880"]
[WhiteElo "2405"]
[BlackElo "2037"]
[Result "1-0"]
[Round "6"]
[TimeControl "180+2"]
[Date "2023.06.20"]
[WhiteClock "0:02:18"]
[BlackClock "0:02:16"]
[Board "140"]

1. e4 {[%clk 0:03:00]}  c5 {[%clk 0:02:59]} 2. Nc3 {[%clk 0:02:48]}  Nc6 {[%clk 0:02:56]} 3. f4 {[%clk 0:02:49]}  g6 {[%clk 0:02:54]} 4. Nf3 {[%clk 0:02:50]}  Bg7 {[%clk 0:02:54]} 5. Bb5 {[%clk 0:02:51]}  Nd4 {[%clk 0:02:53]} 6. O-O {[%clk 0:02:51]}  a6 {[%clk 0:02:52]} 7. Bd3 {[%clk 0:02:51]}  d6 {[%clk 0:02:48]} 8. Nxd4 {[%clk 0:02:51]}  Bxd4+ {[%clk 0:02:46]} 9. Kh1 {[%clk 0:02:51]}  Bd7 {[%clk 0:02:44]} 10. Ne2 {[%clk 0:02:52]}  Bg7 {[%clk 0:02:43]} 11. c3 {[%clk 0:02:52]}  e6 {[%clk 0:02:41]} 12. Bc2 {[%clk 0:02:53]}  Ne7 {[%clk 0:02:40]} 13. d4 {[%clk 0:02:43]}  cxd4 {[%clk 0:02:33]} 14. Nxd4 {[%clk 0:02:44]}  O-O {[%clk 0:02:32]} 15. f5 {[%clk 0:02:40]}  exf5 {[%clk 0:02:27]} 16. exf5 {[%clk 0:02:39]}  d5 {[%clk 0:02:17]} 17. f6 {[%clk 0:02:37]}  Nc6 {[%clk 0:02:18]} 18. fxg7 {[%clk 0:02:37]}  Kxg7 {[%clk 0:02:19]} 19. Be3 {[%clk 0:02:34]}  Ne5 {[%clk 0:02:18]} 20. Bf4 {[%clk 0:02:23]}  Nc4 {[%clk 0:02:18]} 21. b3 {[%clk 0:02:21]}  Na3 {[%clk 0:02:17]} 22. Qd2 {[%clk 0:02:18]}  Nb5 {[%clk 0:02:18]} 23. Bh6+ {[%clk 0:02:17]}  Kg8 {[%clk 0:02:16]} 24. Bxf8 {[%clk 0:02:18]} 1-0


[Site "https://www.chess.com"]

[Event "Titled Tuesday Blitz June 20 Late 2023"]
[White "Cueto, Jonny"]
[Black "Ladan, Nicholas"]
[WhiteFideId "3300145"]
[BlackFideId "30918855"]
[WhiteElo "2240"]
[BlackElo "2167"]
[Result "0-1"]
[Round "6"]
[TimeControl "180+2"]
[Date "2023.06.20"]
[WhiteClock "0:00:00"]
[BlackClock "0:00:04"]
[Board "141"]

1. d4 {[%clk 0:03:00]}  b6 {[%clk 0:03:00]} 2. Bf4 {[%clk 0:02:54]}  Bb7 {[%clk 0:03:00]} 3. e3 {[%clk 0:02:52]}  Nf6 {[%clk 0:03:00]} 4. h3 {[%clk 0:02:52]}  c5 {[%clk 0:02:44]} 5. Nf3 {[%clk 0:02:52]}  e6 {[%clk 0:02:42]} 6. Be2 {[%clk 0:02:51]}  Nc6 {[%clk 0:02:42]} 7. c3 {[%clk 0:02:50]}  Be7 {[%clk 0:02:29]} 8. Nbd2 {[%clk 0:02:46]}  O-O {[%clk 0:02:30]} 9. O-O {[%clk 0:02:46]}  d6 {[%clk 0:02:30]} 10. Bh2 {[%clk 0:02:46]}  Re8 {[%clk 0:02:29]} 11. a4 {[%clk 0:02:46]}  Bf8 {[%clk 0:02:29]} 12. Qb1 {[%clk 0:02:44]}  h6 {[%clk 0:02:28]} 13. b4 {[%clk 0:02:39]}  cxb4 {[%clk 0:02:18]} 14. cxb4 {[%clk 0:02:40]}  d5 {[%clk 0:02:18]} 15. b5 {[%clk 0:02:25]}  Na5 {[%clk 0:02:18]} 16. Rc1 {[%clk 0:02:26]}  Rc8 {[%clk 0:02:17]} 17. Qb2 {[%clk 0:02:23]}  Qe7 {[%clk 0:02:05]} 18. Ne5 {[%clk 0:02:13]}  Qb4 {[%clk 0:02:04]} 19. Qxb4 {[%clk 0:01:53]}  Bxb4 {[%clk 0:02:05]} 20. Ndf3 {[%clk 0:01:52]}  Nb3 {[%clk 0:01:41]} 21. Rxc8 {[%clk 0:01:51]}  Rxc8 {[%clk 0:01:42]} 22. Rb1 {[%clk 0:01:49]}  Rc1+ {[%clk 0:01:38]} 23. Rxc1 {[%clk 0:01:49]}  Nxc1 {[%clk 0:01:39]} 24. Kf1 {[%clk 0:01:40]}  Nxe2 {[%clk 0:01:27]} 25. Kxe2 {[%clk 0:01:39]}  Ne4 {[%clk 0:01:28]} 26. Nc6 {[%clk 0:01:15]}  Bf8 {[%clk 0:00:25]} 27. Kd3 {[%clk 0:00:33]}  a6 {[%clk 0:00:23]} 28. Nfe5 {[%clk 0:00:29]}  axb5 {[%clk 0:00:21]} 29. axb5 {[%clk 0:00:29]}  Nd6 {[%clk 0:00:20]} 30. Nd8 {[%clk 0:00:26]}  Bc8 {[%clk 0:00:17]} 31. Ndc6 {[%clk 0:00:14]}  Nxb5 {[%clk 0:00:15]} 32. f4 {[%clk 0:00:13]}  Nd6 {[%clk 0:00:14]} 33. g4 {[%clk 0:00:12]}  Ba6+ {[%clk 0:00:14]} 34. Kc2 {[%clk 0:00:09]}  Bf1 {[%clk 0:00:13]} 35. Bg3 {[%clk 0:00:07]}  Bxh3 {[%clk 0:00:13]} 36. g5 {[%clk 0:00:04]}  hxg5 {[%clk 0:00:12]} 37. fxg5 {[%clk 0:00:05]}  Ne4 {[%clk 0:00:10]} 38. Be1 {[%clk 0:00:05]}  Nxg5 {[%clk 0:00:09]} 39. Bd2 {[%clk 0:00:03]}  Bf5+ {[%clk 0:00:10]} 40. Kc1 {[%clk 0:00:02]}  f6 {[%clk 0:00:10]} 41. Nd3 {[%clk 0:00:01]}  Bxd3 {[%clk 0:00:09]} 42. Nd8 {[%clk 0:00:01]}  b5 {[%clk 0:00:07]} 43. Nb7 {[%clk 0:00:01]}  b4 {[%clk 0:00:07]} 44. Na5 {[%clk 0:00:01]}  Bc4 {[%clk 0:00:07]} 45. Nc6 {[%clk 0:00:01]}  b3 {[%clk 0:00:07]} 46. Kb2 {[%clk 0:00:01]}  Ne4 {[%clk 0:00:07]} 47. Be1 {[%clk 0:00:01]}  g5 {[%clk 0:00:06]} 48. Nd8 {[%clk 0:00:01]}  e5 {[%clk 0:00:05]} 49. Ne6 {[%clk 0:00:01]}  exd4 {[%clk 0:00:05]} 50. Nxd4 {[%clk 0:00:02]}  g4 {[%clk 0:00:05]} 51. Nf5 {[%clk 0:00:03]}  Kf7 {[%clk 0:00:05]} 52. Bh4 {[%clk 0:00:02]}  Ke6 {[%clk 0:00:05]} 53. Nd4+ {[%clk 0:00:02]}  Ke5 {[%clk 0:00:04]} 54. Be1 {[%clk 0:00:01]}  g3 {[%clk 0:00:04]} 55. Bxg3+ {[%clk 0:00:01]}  Nxg3 {[%clk 0:00:04]} 56. Nc6+ {[%clk 0:00:02]}  Ke4 {[%clk 0:00:05]} 57. Nd4 {[%clk 0:00:00]}  Bd6 {[%clk 0:00:04]} 0-1


[Site "https://www.chess.com"]